bitfinex/quotes_BTCUSD_20241119
["timestamp","ask_amount","ask_price","bid_price","bid_amount"]
[1732033472529,0.190679,92439.0,92423.0,0.1]
[1732033472752,0.10906255,92438.0,92418.0,0.04500626]
[1732033472978,0.10906255,92438.0,92405.0,0.226437]
[1732033472979,0.10906255,92438.0,92411.0,0.1]
[1732033473192,0.10906255,92438.0,92401.0,0.216445]
[1732033473424,0.108192,92429.0,92405.0,0.216438]
[1732033473643,0.216365,92436.0,92406.0,0.10906255]
[1732033473891,0.216363,92437.0,92406.0,0.10906255]
[1732033473892,0.108188,92432.0,92406.0,0.10906255]
[1732033474100,0.108188,92432.0,92414.0,0.108208]
[1732033474310,0.21637,92434.0,92406.0,0.10906255]
[1732033474527,0.12604113,92417.0,92400.0,0.04414761]
[1732033474798,0.108213,92411.0,92393.0,0.108232]
[1732033475019,0.216415,92415.0,92393.0,0.108232]
[1732033475020,0.324625,92414.0,92393.0,0.108232]
[1732033475219,0.216419,92413.0,92393.0,0.108232]
[1732033475448,0.216415,92415.0,92390.0,0.11077175]
[1732033475651,0.0823,92416.0,92391.0,0.216471]
[1732033475855,0.0823,92416.0,92401.0,0.108223]
[1732033476081,0.0823,92416.0,92400.0,0.108224]
[1732033476311,0.0823,92416.0,92390.0,0.15425206]
[1732033476527,4e-05,92413.0,92398.0,0.108227]
[1732033476744,0.10825,92413.0,92395.0,0.108229]
[1732033476948,0.10825,92413.0,92396.0,0.108229]
[1732033477178,4e-05,92413.0,92394.0,0.216464]
[1732033477404,4e-05,92413.0,92399.0,0.108225]
[1732033477641,4e-05,92413.0,92403.0,0.108221]
[1732033477861,4e-05,92413.0,92390.0,0.15425206]
[1732033478072,4e-05,92413.0,92392.0,0.216468]
[1732033478272,4e-05,92413.0,92390.0,0.15425206]
[1732033478719,4e-05,92413.0,92399.0,0.108226]
[1732033478992,4e-05,92413.0,92397.0,0.216457]
[1732033479187,4e-05,92413.0,92399.0,0.216451]
[1732033479392,4e-05,92413.0,92393.0,0.11122707]
[1732033479511,4e-05,92413.0,92412.0,0.108211]
[1732033480628,8e-05,92413.0,92412.0,0.108211]
[1732033481553,0.00012,92413.0,92412.0,0.108211]
[1732033481990,0.00016,92413.0,92412.0,0.108211]
[1732033482666,0.0002,92413.0,92412.0,0.108211]
[1732033483082,0.00024,92413.0,92412.0,0.108211]
[1732033483946,0.00024,92413.0,92412.0,0.21727355]
[1732033484170,0.12836678,92443.0,92412.0,0.10906255]
[1732033484401,0.12604113,92439.0,92424.0,0.108195]
[1732033484623,0.12604113,92439.0,92423.0,0.108157]
[1732033485058,0.12604113,92439.0,92422.0,0.216396]
[1732033485059,0.12604113,92439.0,92424.0,0.108196]
[1732033485512,0.12604113,92439.0,92413.0,0.10906255]
[1732033485923,0.12604113,92439.0,92415.0,0.43283]
[1732033486177,0.12604113,92439.0,92425.0,0.108195]
[1732033486419,0.12604113,92439.0,92423.0,0.108197]
[1732033487291,0.0821,92438.0,92424.0,0.108196]
[1732033487984,0.0821,92438.0,92425.0,0.108195]
[1732033488199,0.0821,92438.0,92416.0,0.108206]
[1732033488418,0.0821,92438.0,92415.0,0.108207]
[1732033488628,0.12604113,92431.0,92413.0,0.04393646]
[1732033488830,0.108193,92427.0,92413.0,0.04393646]
[1732033489059,0.23423013,92431.0,92414.0,0.108208]
[1732033489267,0.23423013,92431.0,92412.0,0.0017084]
[1732033489268,0.10819,92430.0,92413.0,0.108209]
[1732033489471,0.12604113,92431.0,92412.0,0.04656697]
[1732033489674,0.108195,92425.0,92412.0,0.04656697]
[1732033489905,0.0494,92426.0,92412.0,0.04656697]
[1732033490136,0.0494,92426.0,92415.0,0.108206]
[1732033491681,0.04944,92426.0,92415.0,0.108206]
[1732033491889,0.04948,92426.0,92415.0,0.108206]
[1732033492093,0.04952,92426.0,92417.0,0.108205]
[1732033492299,0.00012,92426.0,92414.0,0.216415]
[1732033492513,0.00012,92426.0,92413.0,0.216419]
[1732033492749,0.00016,92426.0,92414.0,0.10906255]
[1732033493020,0.0002,92426.0,92425.0,0.108195]
[1732033493245,0.0002,92426.0,92425.0,0.31725755]
[1732033497402,0.0002,92426.0,92425.0,0.31605755]
[1732033498097,0.0002,92426.0,92425.0,0.36018603]
[1732033498562,0.0002,92426.0,92425.0,0.38018603]
[1732033498780,0.0002,92426.0,92425.0,0.47623254]
[1732033499006,0.0002,92426.0,92425.0,0.38018603]
[1732033499219,0.19191334,92472.0,92431.0,0.1]
[1732033499447,0.19191334,92472.0,92434.0,0.324555]
[1732033499448,0.10906255,92471.0,92434.0,0.324555]
[1732033499671,0.10906255,92471.0,92464.0,0.108149]
[1732033499906,0.12779057,92472.0,92471.0,0.108142]
[1732033500129,0.0831,92472.0,92471.0,0.108142]
[1732033500621,0.0831,92472.0,92460.0,0.216308]
[1732033500864,0.0831,92472.0,92451.0,0.10906255]
[1732033501100,0.0831,92472.0,92469.0,0.108143]
[1732033501754,0.0831,92472.0,92471.0,0.108142]
[1732033502187,0.0831,92472.0,92467.0,0.216293]
[1732033502413,0.10906255,92471.0,92441.0,0.1]
[1732033502635,0.10906255,92471.0,92460.0,0.108154]
[1732033503097,0.10906255,92471.0,92461.0,0.108153]
[1732033503356,0.01,92469.0,92443.0,0.216349]
[1732033503574,0.10906255,92468.0,92443.0,0.216349]
[1732033503789,0.10906255,92468.0,92433.0,0.10906255]
[1732033503790,0.10906255,92468.0,92434.0,0.1]
[1732033504014,0.10906255,92468.0,92455.0,0.10816]
[1732033504499,0.10906255,92468.0,92444.0,0.216347]
[1732033504718,0.0471,92467.0,92436.0,0.1]
[1732033504937,0.10906255,92466.0,92454.0,0.108161]
[1732033505161,0.10906255,92466.0,92448.0,0.216336]
[1732033505162,0.10906255,92466.0,92451.0,0.216329]
[1732033505397,0.0823,92464.0,92436.0,0.1]
[1732033505604,0.10906255,92463.0,92436.0,0.1]
[1732033505821,0.10906255,92463.0,92451.0,0.108164]
[1732033506070,0.10906255,92463.0,92431.0,0.1]
[1732033506300,0.0823,92464.0,92460.0,0.108154]
[1732033506522,0.0823,92464.0,92463.0,0.108151]
[1732033507028,0.0819,92474.0,92469.0,0.108143]
[1732033507250,0.0819,92474.0,92449.0,0.0762]
[1732033507478,0.0819,92474.0,92450.0,0.10906255]
[1732033507696,0.0819,92474.0,92470.0,0.108142]
[1732033508381,0.0819,92474.0,92468.0,0.108145]
[1732033508593,0.0819,92474.0,92473.0,0.108139]
[1732033509264,0.0819,92474.0,92469.0,0.216288]
[1732033509483,0.0819,92474.0,92471.0,0.108141]
[1732033509708,0.0819,92474.0,92472.0,0.108139]
[1732033510150,0.0819,92474.0,92473.0,0.108139]
[1732033510824,0.0819,92474.0,92471.0,0.109849]
[1732033511051,0.082754,92474.0,92472.0,0.10814]
[1732033511982,0.082754,92474.0,92473.0,0.108139]
[1732033512863,0.082754,92474.0,92471.0,0.109849]
[1732033513079,0.082754,92474.0,92472.0,0.10814]
[1732033513567,0.082754,92474.0,92471.0,0.001708]
[1732033513568,0.082754,92474.0,92473.0,0.108139]
[1732033513771,0.082754,92474.0,92471.0,0.109849]
[1732033513977,0.082754,92474.0,92472.0,0.10814]
[1732033514181,0.25597037,92481.0,92471.0,0.001708]
[1732033514415,0.10906255,92480.0,92473.0,0.108139]
[1732033514852,0.10906255,92480.0,92472.0,0.10814]
[1732033515093,0.10906255,92480.0,92474.0,0.108138]
[1732033515308,0.10906255,92480.0,92472.0,0.10814]
[1732033515537,0.10906255,92480.0,92474.0,0.108137]
[1732033515985,0.10906255,92480.0,92471.0,0.001708]
[1732033516247,0.10906255,92480.0,92473.0,0.108139]
[1732033517368,0.10906255,92480.0,92471.0,0.001708]
[1732033517586,0.23510368,92480.0,92471.0,0.001708]
[1732033517804,0.34323468,92480.0,92471.0,0.001708]
[1732033518014,0.23510368,92480.0,92471.0,0.001708]
[1732033518469,0.24510368,92480.0,92471.0,0.001708]
[1732033518681,0.23510368,92480.0,92471.0,0.001708]
[1732033519386,0.24510368,92480.0,92471.0,0.001708]
[1732033520565,0.10906255,92480.0,92474.0,0.108137]
[1732033520806,0.10906255,92480.0,92475.0,0.108136]
[1732033521065,0.10906255,92480.0,92473.0,0.108139]
[1732033521297,0.10906255,92480.0,92471.0,0.001708]
[1732033521733,0.10906255,92480.0,92472.0,0.216281]
[1732033521961,0.10906255,92480.0,92474.0,0.216277]
[1732033522196,0.10906255,92480.0,92472.0,0.216281]
[1732033522436,0.10906255,92480.0,92471.0,0.217989]
[1732033522678,0.10906255,92480.0,92475.0,0.108137]
[1732033522905,0.10906255,92480.0,92471.0,0.001708]
[1732033523130,0.10906255,92480.0,92473.0,0.108139]
[1732033523357,0.10906255,92480.0,92471.0,0.001708]
[1732033523564,0.10991655,92480.0,92472.0,0.216281]
[1732033523772,0.10991655,92480.0,92474.0,0.108138]
[1732033524004,0.10991655,92480.0,92474.0,0.108137]
[1732033524237,0.10991655,92480.0,92471.0,0.001708]
[1732033524451,0.10991655,92480.0,92476.0,0.108135]
[1732033524668,0.10991655,92480.0,92474.0,0.108138]
[1732033524896,0.10991655,92480.0,92472.0,0.216281]
[1732033525079,0.10991655,92480.0,92474.0,0.108137]
[1732033525346,0.10991655,92480.0,92475.0,0.108136]
[1732033525764,0.10991655,92480.0,92472.0,0.216281]
[1732033526000,0.10991655,92480.0,92473.0,0.108138]
[1732033526216,0.10991655,92480.0,92472.0,0.216281]
[1732033526442,0.10991655,92480.0,92474.0,0.108137]
[1732033526658,0.10991655,92480.0,92471.0,0.001708]
[1732033526843,0.10991655,92480.0,92474.0,0.108138]
[1732033527081,0.10991655,92480.0,92473.0,0.216279]
[1732033527365,0.11991655,92480.0,92471.0,0.001708]
[1732033527602,0.11991655,92480.0,92471.0,0.109849]
[1732033528047,0.11991655,92480.0,92471.0,0.001708]
[1732033528252,0.11991655,92480.0,92471.0,0.109849]
[1732033529187,0.03091655,92480.0,92471.0,0.109849]
[1732033529445,0.03091655,92480.0,92471.0,0.001708]
[1732033529686,0.24418113,92472.0,92471.0,0.001708]
[1732033529918,0.39647015,92472.0,92471.0,0.001708]
[1732033531916,0.27042902,92472.0,92471.0,0.001708]
[1732033533272,0.27042902,92472.0,92471.0,0.001408]
[1732033536152,0.27043394,92472.0,92471.0,0.001408]
[1732033537919,0.27043594,92472.0,92471.0,0.001408]
[1732033539545,0.2704336,92472.0,92471.0,0.001408]
[1732033540454,0.128986,92480.0,92471.0,0.001408]
[1732033540688,0.01,92476.0,92471.0,0.001408]
[1732033540902,0.12929214,92475.0,92472.0,0.00184885]
[1732033541139,0.10906255,92475.0,92472.0,0.00184885]
[1732033544135,0.023,92487.0,92473.0,0.108138]
[1732033544362,0.216243,92489.0,92472.0,0.00184885]
[1732033544363,0.04377013,92485.0,92472.0,0.00184885]
[1732033544600,0.01,92489.0,92473.0,0.21812916]
[1732033544601,0.10906255,92484.0,92473.0,0.21812916]
[1732033544810,0.10906255,92484.0,92474.0,0.108138]
[1732033545056,0.10906255,92484.0,92475.0,0.108136]
[1732033545279,0.10906255,92484.0,92475.0,0.10998633]
[1732033545500,0.10906255,92484.0,92475.0,0.00185033]
[1732033546139,0.10906255,92484.0,92471.0,0.001408]
[1732033546366,0.10906255,92484.0,92476.0,0.00185005]
[1732033546582,0.10906255,92484.0,92474.0,0.108137]
[1732033547050,0.25942631,92489.0,92475.0,0.13055019]
[1732033547051,0.04318431,92489.0,92475.0,0.13055019]
[1732033547263,0.04318431,92489.0,92479.0,0.108132]
[1732033547483,0.0008539,92480.0,92479.0,0.108132]
[1732033548189,0.0008539,92480.0,92476.0,0.216271]
[1732033548409,0.0008539,92480.0,92479.0,0.108132]
[1732033550228,0.0008539,92480.0,92479.0,0.10996513]
[1732033552134,0.0008539,92480.0,92479.0,0.00183313]
[1732033552548,0.0008539,92480.0,92478.0,0.108133]
[1732033552764,0.0008539,92480.0,92479.0,0.10995329]
[1732033552987,0.0008539,92480.0,92479.0,0.00182129]
[1732033553206,0.0008539,92480.0,92479.0,0.108132]
[1732033553413,0.0008539,92480.0,92479.0,0.10995329]
[1732033554889,0.0008539,92480.0,92479.0,0.00182129]
[1732033555340,0.10991645,92480.0,92471.0,0.001408]
[1732033555555,0.07952153,92473.0,92471.0,0.001408]
[1732033555766,0.07952153,92473.0,92472.0,0.00182322]
[1732033556722,0.07952153,92473.0,92471.0,0.001408]
[1732033556936,0.07952153,92478.0,92472.0,0.00182103]
[1732033558745,0.07952153,92478.0,92475.0,0.108137]
[1732033558963,0.0008539,92480.0,92475.0,0.108137]
[1732033559177,0.03491486,92483.0,92476.0,0.00182157]
[1732033559650,0.03491486,92483.0,92471.0,0.001408]
[1732033560106,0.03491486,92483.0,92473.0,0.108138]
[1732033560318,0.03491486,92483.0,92472.0,0.10996405]
[1732033560540,0.03491486,92483.0,92474.0,0.0018235]
[1732033560746,0.03491486,92483.0,92473.0,0.21809733]
[1732033560964,0.03491486,92483.0,92475.0,0.00182142]
[1732033561181,0.03491486,92483.0,92474.0,0.1099597]
[1732033561402,0.03491486,92483.0,92476.0,0.00182114]
[1732033561624,0.03491486,92483.0,92477.0,0.00182087]
[1732033562080,0.10906255,92486.0,92476.0,0.108135]
[1732033562329,0.10906255,92486.0,92473.0,0.216277]
[1732033562330,0.07952153,92483.0,92478.0,0.00182059]
[1732033562560,0.07952153,92483.0,92477.0,0.0018217]
[1732033562822,0.07952153,92483.0,92479.0,0.10995231]
[1732033563033,0.07952153,92483.0,92478.0,0.00182059]
[1732033563287,0.07952153,92483.0,92480.0,0.00182004]
[1732033563495,0.07952153,92483.0,92479.0,0.00182031]
[1732033563704,0.07952153,92483.0,92481.0,0.00181976]
[1732033563931,0.07952153,92483.0,92480.0,0.00182004]
[1732033564155,0.07952153,92483.0,92482.0,0.00181948]
[1732033564414,0.07952153,92483.0,92482.0,0.108129]
[1732033564859,0.07952153,92483.0,92482.0,0.10994848]
[1732033565279,0.04327173,92487.0,92482.0,0.00181948]
[1732033565488,0.04327173,92487.0,92486.0,0.108124]
[1732033565709,0.07952153,92490.0,92489.0,0.10812]
[1732033566346,0.0008548,92493.0,92489.0,0.00181935]
[1732033566596,0.0008548,92493.0,92492.0,0.108117]
[1732033566597,0.04469938,92493.0,92492.0,0.108117]
[1732033566818,0.0008548,92493.0,92492.0,0.108117]
[1732033567025,0.0008548,92493.0,92492.0,0.10993635]
[1732033567250,0.0008548,92493.0,92492.0,0.00181935]
[1732033567677,0.0008548,92493.0,92483.0,0.216255]
[1732033567886,0.0008548,92493.0,92492.0,0.00181935]
[1732033568115,0.0008548,92493.0,92482.0,0.0818]
[1732033568369,0.0008548,92493.0,92475.0,0.216272]
[1732033568370,0.07952153,92485.0,92475.0,0.216272]
[1732033568586,0.07952153,92485.0,92472.0,0.0754]
[1732033568587,0.18858408,92485.0,92472.0,0.0754]
[1732033568816,0.18858408,92485.0,92475.0,0.108136]
[1732033569046,0.18858408,92485.0,92479.0,0.108132]
[1732033569518,0.18858408,92485.0,92477.0,0.216268]
[1732033569519,0.18858408,92485.0,92480.0,0.00182046]
[1732033569750,0.10906255,92485.0,92480.0,0.00182046]
[1732033569989,0.10906255,92485.0,92478.0,0.108133]
[1732033570196,0.10906255,92485.0,92474.0,0.216277]
[1732033570197,0.10906255,92485.0,92479.0,0.108132]
[1732033570408,0.10906255,92485.0,92480.0,0.00182046]
[1732033570649,0.10906255,92485.0,92481.0,0.108129]
[1732033570925,0.10906255,92485.0,92480.0,0.00182046]
[1732033571115,0.10906255,92485.0,92482.0,0.00181965]
[1732033571315,0.10906255,92485.0,92481.0,0.00181993]
[1732033571542,0.10906255,92485.0,92480.0,0.108131]
[1732033571543,0.15350692,92485.0,92483.0,0.00181937]
[1732033571754,0.21718855,92484.0,92483.0,0.00181937]
[1732033571994,0.21718855,92484.0,92476.0,0.0017102]
[1732033571995,0.108133,92479.0,92476.0,0.0017102]
[1732033572206,0.10252153,92483.0,92477.0,0.00175431]
[1732033572428,0.10906255,92482.0,92476.0,0.0017102]
[1732033572849,0.10906255,92482.0,92477.0,0.00175514]
[1732033574043,0.10906255,92482.0,92475.0,0.10760234]
[1732033574260,0.108129,92482.0,92474.0,0.108138]
[1732033574498,0.26069737,92485.0,92484.0,0.108126]
[1732033574499,0.04444437,92485.0,92484.0,0.108126]
[1732033574891,0.01,92501.0,92484.0,0.108126]
[1732033574892,0.01,92501.0,92485.0,0.216251]
[1732033575108,0.81841553,92500.0,92490.0,0.108119]
[1732033575308,0.81841553,92500.0,92486.0,0.21794687]
[1732033575530,0.81841553,92500.0,92491.0,0.00169749]
[1732033575674,0.81841553,92500.0,92487.0,0.216246]
[1732033575675,0.023,92498.0,92489.0,0.10812]
[1732033575880,0.023,92498.0,92492.0,0.00169722]
[1732033576111,0.023,92498.0,92490.0,0.108119]
[1732033576372,0.023,92498.0,92491.0,0.00169749]
[1732033576618,0.0029984,92499.0,92492.0,0.108117]
[1732033577054,0.0029984,92499.0,92492.0,0.10981422]
[1732033577539,0.04556837,92493.0,92492.0,0.10981422]
[1732033577775,0.0008548,92493.0,92492.0,0.00169722]
[1732033578001,0.0008548,92493.0,92488.0,0.108121]
[1732033578002,0.0008548,92493.0,92489.0,0.10812]
[1732033578215,0.0008548,92493.0,92490.0,0.00169777]
[1732033578432,0.0008548,92493.0,92489.0,0.10812]
[1732033578703,0.0008548,92493.0,92491.0,0.00169749]
[1732033578927,0.0008548,92493.0,92490.0,0.00169777]
[1732033579140,0.0008548,92493.0,92491.0,0.00169749]
[1732033579362,0.0008548,92493.0,92489.0,0.10812]
[1732033579593,0.0108548,92493.0,92490.0,0.00169777]
[1732033580011,0.0008548,92493.0,92488.0,0.108122]
[1732033580238,0.0008548,92493.0,92489.0,0.00169805]
[1732033580643,0.0108548,92493.0,92489.0,0.00169805]
[1732033580865,0.0008548,92493.0,92489.0,0.00169805]
[1732033581074,0.0008548,92493.0,92489.0,0.10981805]
[1732033581507,0.0008548,92493.0,92489.0,0.00169805]
[1732033581930,0.0008548,92493.0,92489.0,0.10981805]
[1732033582390,0.0008548,92493.0,92489.0,0.00169805]
[1732033582588,0.0008548,92493.0,92489.0,0.10981705]
[1732033582789,0.0008548,92493.0,92492.0,0.108117]
[1732033582996,0.0008548,92493.0,92492.0,0.10981422]
[1732033583211,0.0008548,92493.0,92492.0,0.18641422]
[1732033583421,0.0008548,92493.0,92492.0,0.23281422]
[1732033584321,0.0008548,92493.0,92492.0,0.31233575]
[1732033585647,0.0008548,92493.0,92492.0,0.4313983]
[1732033585869,0.0008548,92493.0,92492.0,0.5275482]
[1732033586085,0.0008548,92493.0,92492.0,0.4313983]
[1732033586840,0.0008548,92493.0,92492.0,0.47741207]
[1732033587869,0.0008548,92493.0,92492.0,0.62150597]
[1732033588326,0.0008548,92493.0,92492.0,0.47741207]
[1732033588959,0.6537472,92500.0,92492.0,0.24629507]
[1732033589177,0.6537472,92500.0,92499.0,0.240109]
[1732033589382,0.6537472,92500.0,92499.0,0.35083816]
[1732033590252,0.6537472,92500.0,92499.0,0.24177561]
[1732033591916,0.6537472,92500.0,92499.0,0.36083816]
[1732033593791,0.6546023,92500.0,92499.0,0.36083816]
[1732033595474,0.6546023,92500.0,92499.0,0.39728375]
[1732033595726,0.6546023,92500.0,92499.0,0.49303493]
[1732033595933,0.6113583,92500.0,92499.0,0.49303493]
[1732033596147,0.5464923,92500.0,92499.0,0.39728375]
[1732033596613,0.4383823,92500.0,92499.0,0.39728375]
[1732033596847,0.37423687,92500.0,92499.0,0.53584852]
[1732033597066,0.37423687,92500.0,92499.0,0.67953233]
[1732033597301,0.35254383,92500.0,92499.0,0.54584852]
[1732033597510,0.16633383,92500.0,92499.0,0.6893273]
[1732033597729,0.11633383,92500.0,92499.0,0.6913273]
[1732033597931,0.11633383,92500.0,92499.0,0.6893273]
[1732033598172,0.11633383,92500.0,92499.0,0.54584852]
[1732033598385,0.11633383,92500.0,92499.0,0.47083816]
[1732033598594,0.11633383,92500.0,92499.0,0.61430011]
[1732033598797,0.11633383,92500.0,92499.0,0.47083816]
[1732033599746,0.11633383,92500.0,92499.0,0.46083816]
[1732033600162,0.11633383,92500.0,92499.0,0.36083816]
[1732033601557,0.11633383,92500.0,92499.0,0.00166661]
[1732033601777,0.11633383,92500.0,92493.0,0.216232]
[1732033601993,0.11633383,92500.0,92499.0,0.108109]
[1732033602215,0.11633383,92500.0,92499.0,0.10980083]
[1732033602447,0.11633383,92500.0,92499.0,0.10935189]
[1732033603344,0.11633383,92500.0,92499.0,0.00169183]
[1732033603554,0.11633383,92500.0,92499.0,0.108109]
[1732033603760,0.11633383,92500.0,92499.0,0.00166042]
[1732033603985,0.02733383,92500.0,92492.0,0.216232]
[1732033604202,0.01733383,92500.0,92493.0,0.00166233]
[1732033604676,0.01733383,92500.0,92499.0,0.108109]
[1732033605141,0.01733383,92500.0,92499.0,0.10976942]
[1732033605545,0.01733383,92500.0,92499.0,0.11147942]
[1732033608130,0.01733383,92500.0,92499.0,0.00337042]
[1732033608351,0.01733383,92500.0,92499.0,0.11147942]
[1732033613278,0.01733383,92500.0,92499.0,0.00337042]
[1732033613737,0.01733383,92500.0,92499.0,0.11147942]
[1732033617203,0.01733383,92500.0,92499.0,0.19287942]
[1732033617401,0.01733383,92500.0,92499.0,0.31194197]
[1732033619052,0.05118856,92530.0,92499.0,0.20383297]
[1732033619266,0.13206255,92529.0,92500.0,0.01]
[1732033619473,0.05118856,92530.0,92505.0,0.01]
[1732033619681,0.05118856,92530.0,92507.0,0.01]
[1732033619907,0.05118856,92530.0,92507.0,0.11906255]
[1732033620111,0.04390471,92530.0,92508.0,0.0015152]
[1732033620319,0.0481544,92532.0,92508.0,0.0015152]
[1732033620530,0.0481544,92532.0,92525.0,0.108078]
[1732033620748,0.0481544,92532.0,92508.0,0.0015152]
[1732033620961,0.0481544,92532.0,92526.0,0.0015101]
[1732033621178,0.09248186,92532.0,92525.0,0.108078]
[1732033621397,0.09248186,92532.0,92523.0,0.216161]
[1732033621398,0.09248186,92532.0,92528.0,0.21615]
[1732033621645,0.0481544,92532.0,92531.0,0.108071]
[1732033621869,0.0481544,92532.0,92531.0,0.00150309]
[1732033622312,0.0481544,92532.0,92531.0,0.108071]
[1732033622528,0.0008544,92532.0,92531.0,0.10957409]
[1732033625020,0.03428706,92534.0,92533.0,0.108069]
[1732033625240,0.0004,92539.0,92531.0,0.21764409]
[1732033625241,0.0004,92539.0,92531.0,0.00150309]
[1732033625459,0.0004,92539.0,92532.0,0.216141]
[1732033625665,0.0004,92539.0,92532.0,0.001505]
[1732033625874,0.0004,92539.0,92534.0,0.108068]
[1732033626087,0.04362651,92539.0,92534.0,0.108068]
[1732033626308,0.0004,92539.0,92535.0,0.00150404]
[1732033626765,0.0004,92539.0,92534.0,0.108068]
[1732033626990,0.0004,92539.0,92536.0,0.00150373]
[1732033627196,0.0004,92539.0,92538.0,0.108063]
[1732033627640,0.0004,92539.0,92538.0,0.00150309]
[1732033628077,0.0004,92539.0,92537.0,0.108064]
[1732033628343,0.0004,92539.0,92532.0,0.216139]
[1732033628344,0.0004,92539.0,92538.0,0.00148224]
[1732033628781,0.0004,92539.0,92536.0,0.108065]
[1732033629025,0.0004,92539.0,92538.0,0.00148224]
[1732033629242,0.0004,92539.0,92445.0,0.05]
[1732033629243,0.0004,92539.0,92537.0,0.00148256]
[1732033629466,0.0004,92539.0,92515.0,0.35536775]
[1732033629467,0.0004,92539.0,92536.0,0.108065]
[1732033629691,0.0004,92539.0,92538.0,0.10954524]
[1732033629880,0.0004,92539.0,92537.0,0.00148256]
[1732033630089,0.0004,92539.0,92538.0,0.00148224]
[1732033630513,0.0004,92539.0,92536.0,0.108065]
[1732033630729,0.0004,92539.0,92538.0,0.00148224]
[1732033630963,0.0004,92539.0,92537.0,0.00148256]
[1732033631176,0.0012547,92539.0,92538.0,0.00148224]
[1732033631689,0.0012547,92539.0,92528.0,0.108074]
[1732033631895,0.0012547,92539.0,92526.0,0.2178634]
[1732033632155,0.0012547,92539.0,92529.0,0.00148511]
[1732033632362,0.0012547,92539.0,92529.0,0.11906255]
[1732033632576,0.0012547,92539.0,92530.0,0.00148479]
[1732033632790,0.108064,92538.0,92530.0,0.00148479]
[1732033633008,0.0012547,92539.0,92526.0,0.0017094]
[1732033633232,0.108074,92529.0,92526.0,0.0017094]
[1732033633448,0.1255353,92531.0,92526.0,0.0017094]
[1732033633449,0.108076,92527.0,92526.0,0.0017094]
[1732033633865,0.108075,92528.0,92526.0,0.0017094]
[1732033634083,0.216148,92529.0,92526.0,0.0017094]
[1732033634346,0.108076,92527.0,92526.0,0.0017094]
[1732033635552,0.108072,92531.0,92526.0,0.0017094]
[1732033635768,0.108073,92530.0,92526.0,0.0017094]
[1732033635898,0.12170887,92533.0,92526.0,0.0017094]
[1732033636342,0.04310887,92533.0,92526.0,0.0017094]
[1732033636572,0.108074,92530.0,92526.0,0.0017094]
[1732033636803,0.108072,92531.0,92526.0,0.0017094]
[1732033637243,0.131069,92533.0,92526.0,0.0017094]
[1732033637506,0.108071,92532.0,92526.0,0.0017094]
[1732033637723,0.216134,92535.0,92526.0,0.0017094]
[1732033637724,0.361244,92529.0,92526.0,0.0017094]
[1732033638196,0.361244,92529.0,92527.0,0.0763]
[1732033638659,0.361244,92529.0,92528.0,0.00133554]
[1732033639127,0.361244,92529.0,92528.0,0.10941054]
[1732033639341,0.361244,92529.0,92528.0,0.00133554]
[1732033641538,0.361244,92529.0,92353.0,0.55205453]
[1732033641759,0.361244,92529.0,92528.0,0.00128417]
[1732033641966,0.361244,92529.0,92525.0,0.108078]
[1732033642167,0.361244,92529.0,92528.0,0.00128417]
[1732033642369,0.361244,92529.0,92526.0,0.1097864]
[1732033642603,0.361244,92529.0,92528.0,0.00128417]
[1732033643047,0.361244,92529.0,92526.0,0.0017094]
[1732033643248,0.361244,92529.0,92527.0,0.10935949]
[1732033643463,0.361244,92529.0,92528.0,0.108075]
[1732033643666,0.361244,92529.0,92528.0,0.00115177]
[1732033643886,0.361244,92529.0,92526.0,0.1097864]
[1732033644098,0.361244,92529.0,92528.0,0.00115177]
[1732033644330,0.361244,92529.0,92526.0,0.1097864]
[1732033644555,0.361244,92529.0,92528.0,0.00115177]
[1732033644762,0.361244,92529.0,92526.0,0.0017094]
[1732033645002,0.361244,92529.0,92528.0,0.00115177]
[1732033647070,0.361244,92529.0,92527.0,0.00115209]
[1732033647286,0.361244,92529.0,92526.0,0.0017094]
[1732033647518,0.361244,92529.0,92528.0,0.00115177]
[1732033647727,0.361244,92529.0,92526.0,0.0017094]
[1732033648561,0.361244,92529.0,92527.0,0.00115209]
[1732033648995,0.361244,92529.0,92526.0,0.0017094]
[1732033648996,0.272244,92529.0,92526.0,0.0017094]
[1732033650060,0.272244,92529.0,92527.0,0.00110331]
[1732033652224,0.272244,92529.0,92526.0,0.0017094]
[1732033652449,0.272244,92529.0,92527.0,0.00110331]
[1732033653132,0.272244,92529.0,92526.0,0.0017094]
[1732033654297,0.272244,92529.0,92527.0,0.00281271]
[1732033654528,0.2730987,92529.0,92527.0,0.0017094]
[1732033655207,0.2730987,92529.0,92528.0,0.00110299]
[1732033655886,0.2730987,92529.0,92527.0,0.0017094]
[1732033656126,0.2730987,92529.0,92528.0,0.00110299]
[1732033656990,0.2730987,92529.0,92527.0,0.0017094]
[1732033657644,0.2730987,92529.0,92528.0,0.00110299]
[1732033658265,0.2730987,92529.0,92527.0,0.0017094]
[1732033658701,0.2730987,92529.0,92528.0,0.00110299]
[1732033659403,0.2730987,92529.0,92528.0,0.5312782]
[1732033659607,0.0008547,92533.0,92528.0,0.5312782]
[1732033659608,0.0008547,92533.0,92532.0,0.11807]
[1732033659818,0.0008547,92533.0,92532.0,0.30553255]
[1732033660341,0.0008547,92533.0,92532.0,0.4506429]
[1732033660553,0.0008547,92533.0,92532.0,0.30663216]
[1732033660766,0.00973512,92549.0,92548.0,0.108052]
[1732033661236,0.00973512,92549.0,92543.0,0.0486]
[1732033661448,0.00973512,92549.0,92548.0,0.108052]
[1732033661673,0.00973512,92549.0,92548.0,0.183852]
[1732033661888,0.00973512,92549.0,92548.0,0.18495161]
[1732033664057,0.00973512,92549.0,92548.0,0.29291455]
[1732033664281,1.82073512,92550.0,92549.0,0.24347134]
[1732033664525,1.82073512,92550.0,92549.0,0.35253389]
[1732033665708,1.82073512,92550.0,92549.0,0.49624285]
[1732033665962,1.82073512,92550.0,92549.0,0.54411769]
[1732033666188,1.82073512,92550.0,92549.0,0.35253389]
[1732033667077,1.82073512,92550.0,92549.0,0.49616467]
[1732033667520,1.82073512,92550.0,92549.0,0.35253389]
[1732033667735,1.82073512,92550.0,92549.0,0.24448389]
[1732033667998,1.82073512,92550.0,92549.0,0.44828604]
[1732033668231,1.82073512,92550.0,92549.0,0.11906255]
[1732033668447,1.82073512,92550.0,92549.0,0.24448389]
[1732033668878,1.82073512,92550.0,92549.0,0.35253389]
[1732033674036,1.82073512,92550.0,92549.0,0.22711255]